bitfinex/quotes_ETHUSD_20230405
["timestamp","ask_amount","ask_price","bid_price","bid_amount"]
[1680698743582,0.18334,1909.0,1908.4,0.03402144]
[1680698743778,0.72086826,1909.0,1908.4,0.03402144]
[1680698744172,1.82090826,1909.0,1908.4,0.03402144]
[1680698744809,1.08754826,1909.0,1908.4,0.03402144]
[1680698745002,1.08754826,1909.0,1908.4,0.03]
[1680698745602,0.72086826,1909.0,1908.4,0.03]
[1680698745803,0.07208683,1908.9,1908.4,0.03]
[1680698745999,2.80513683,1908.9,1908.4,0.03]
[1680698746204,5.43941938,1908.9,1908.4,0.03]
[1680698746398,4.89136938,1908.9,1908.4,0.03]
[1680698746726,5.43941938,1908.9,1908.4,0.03]
[1680698746924,0.54394194,1908.8,1908.4,0.03402144]
[1680698747091,0.18337,1908.7,1908.4,0.03]
[1680698747286,3.54494449,1908.8,1908.4,0.03402144]
[1680698747490,2.988777,1908.7,1908.4,0.03]
[1680698747728,5.179777,1908.7,1908.4,0.03]
[1680698747927,5.181777,1908.7,1908.4,0.03]
[1680698748223,5.731887,1908.7,1908.4,0.03]
[1680698748437,0.5731887,1908.6,1908.4,0.03]
[1680698748629,2.7541887,1908.6,1908.4,0.03]
[1680698748935,2.18,1908.5,1908.4,0.03]
[1680698749092,2.36339,1908.5,1908.4,0.03]
[1680698749491,5.36445255,1908.5,1908.4,0.03]
[1680698749687,5.59363668,1908.5,1908.4,0.03]
[1680698750511,5.96041668,1908.5,1908.4,0.03]
[1680698750710,5.41024668,1908.5,1908.4,0.03]
[1680698751209,6.41024668,1908.5,1908.4,0.03]
[1680698751625,5.41024668,1908.5,1908.4,0.03]
[1680698754410,0.002,1908.5,1908.4,0.03]
[1680698754608,7.2416,1908.8,1908.4,0.03]
[1680698754840,0.6075202,1908.5,1908.4,0.03]
[1680698755953,2.63428255,1908.7,1908.4,0.03]
[1680698756141,0.26362825,1908.6,1908.4,0.03]
[1680698757042,0.2608036,1908.6,1908.4,0.03]
[1680698757346,0.002,1908.8,1908.4,0.03]
[1680698757507,2.63428255,1908.8,1908.4,0.03]
[1680698758331,2.81764255,1908.8,1908.4,0.03]
[1680698759611,3.18436255,1908.8,1908.4,0.03]
[1680698759840,0.31843626,1908.7,1908.4,0.03]
[1680698760144,0.18338,1908.6,1908.4,0.03]
[1680698760975,0.55014,1908.6,1908.4,0.03]
[1680698763179,2.63428255,1908.5,1908.4,0.03]
[1680698765048,0.18338,1908.6,1908.4,0.03]
[1680698765261,0.002,1908.9,1908.5,2.178]
[1680698765474,0.36664,1909.2,1908.6,2.191]
[1680698765475,0.008,1909.2,1908.6,2.191]
[1680698765673,2.81761255,1909.1,1908.5,2.17]
[1680698765993,0.18332,1909.2,1908.6,0.02163714]
[1680698766182,2.63428255,1909.1,1908.6,0.02163714]
[1680698766382,2.81762255,1909.1,1908.6,0.02163714]
[1680698767266,2.63428255,1909.1,1908.6,0.02163714]
[1680698767889,2.81761255,1909.1,1908.6,0.02163714]
[1680698768091,3.09937381,1909.1,1908.6,0.02163714]
[1680698768664,2.63428255,1909.0,1908.5,0.00402144]
[1680698768866,3.32757842,1909.0,1908.4,0.03402144]
[1680698769078,3.6741818,1909.0,1908.4,0.03]
[1680698769704,3.6741818,1909.0,1908.4,0.03402144]
[1680698770178,3.6741818,1909.0,1908.4,0.03]
[1680698770575,0.55076818,1908.9,1908.4,0.03]
[1680698770775,3.18505073,1908.9,1908.4,0.03]
[1680698770994,3.55175073,1908.9,1908.4,0.03]
[1680698773171,3.18505073,1908.9,1908.4,0.03]
[1680698773377,3.00170073,1908.9,1908.4,0.03]
[1680698776111,2.63428255,1908.9,1908.4,0.03]
[1680698776405,2.63428255,1908.9,1908.4,2.22163942]
[1680698779412,2.63428255,1908.9,1908.4,0.05163942]
[1680698780388,2.81763255,1908.9,1908.4,0.05163942]
[1680698780593,2.63428255,1908.8,1908.4,0.03]
[1680698780793,0.18337,1908.7,1908.4,0.03]
[1680698781211,2.63428255,1908.6,1908.4,0.03]
[1680698784636,0.28376326,1908.8,1908.4,0.03]
[1680698784839,2.63428255,1908.7,1908.4,0.03]
[1680698785007,0.671707,1908.5,1908.4,0.03]
[1680698786739,0.66803625,1908.5,1908.4,0.03]
[1680698787944,2.106,1908.9,1908.4,0.03]
[1680698788143,2.81764255,1908.8,1908.4,0.03]
[1680698788643,3.18436255,1908.8,1908.4,0.03]
[1680698788861,1.64995513,1908.7,1908.4,0.03]
[1680698789061,2.63428255,1908.6,1908.4,0.03]
[1680698789366,3.06270632,1908.6,1908.4,0.03]
[1680698793970,4.16070632,1908.6,1908.4,0.03]
[1680698794578,1.0,1908.5,1908.4,0.03]
[1680698794811,1.62894156,1908.5,1908.4,0.03]
[1680698795477,1.81233156,1908.5,1908.4,0.03]
[1680698795662,2.11664535,1908.5,1908.4,0.03]
[1680698796363,4.9343179,1908.5,1908.4,0.03]
[1680698797090,4.9343179,1908.5,1907.9,29.93402144]
[1680698797091,6.3990979,1908.5,1907.9,29.93402144]
[1680698797262,6.3990979,1908.5,1907.9,0.00602144]
[1680698797263,5.3030979,1908.5,1907.9,0.00602144]
[1680698797468,1.09,1908.1,1907.7,0.1]
[1680698797672,0.55031,1908.0,1907.7,0.10402144]
[1680698797978,0.238481,1907.9,1907.7,0.10402144]
[1680698798165,0.238481,1907.9,1907.7,0.1]
[1680698798563,0.002,1908.1,1907.8,5.508]
[1680698798773,0.008,1908.7,1907.9,6.597]
[1680698799001,4.16364855,1908.7,1907.9,16.8659]
[1680698799178,4.34701855,1908.7,1907.9,16.8659]
[1680698799579,4.34701855,1908.7,1907.9,16.86992144]
[1680698799969,0.57435988,1908.6,1907.9,16.86992144]
[1680698800413,1.09,1908.4,1907.9,10.27292144]
[1680698801306,3.73128255,1908.5,1907.9,0.00602144]
[1680698801604,3.73128255,1908.5,1907.8,0.00402144]
[1680698801792,4.10461081,1908.5,1907.8,0.00402144]
[1680698803196,1.09,1908.4,1907.8,0.00402144]
[1680698806240,1.09,1908.4,1908.0,15.0]
[1680698806439,1.09,1908.4,1908.0,15.00602144]
[1680698807138,1.2734,1908.4,1908.0,15.00602144]
[1680698807344,0.12734,1908.3,1908.0,15.00602144]
[1680698808048,0.002,1908.5,1908.0,15.00602144]
[1680698808231,15.1103,1908.8,1908.1,1.098]
[1680698808439,17.53611,1908.8,1908.0,15.002]
[1680698808631,20.35375255,1908.8,1908.0,15.002]
[1680698809248,20.35375255,1908.8,1908.0,15.02364395]
[1680698809415,20.35375255,1908.8,1908.0,15.02564395]
[1680698809607,20.34775255,1908.8,1908.0,15.02766539]
[1680698809814,2.63428255,1908.7,1908.0,15.02766539]
[1680698810123,0.18338,1908.6,1908.0,15.02766539]
[1680698810319,2.63428255,1908.6,1908.0,15.02766539]
[1680698811119,2.81766255,1908.6,1908.0,15.02766539]
[1680698813654,2.63428255,1908.5,1908.0,15.00602144]
[1680698813819,2.81767255,1908.5,1908.0,15.00602144]
[1680698814019,3.44935192,1908.5,1908.0,15.00602144]
[1680698814244,0.34493519,1908.4,1908.0,15.00602144]
[1680698814440,1.61833519,1908.4,1908.0,15.00602144]
[1680698814915,1.98512519,1908.4,1908.0,15.00602144]
[1680698815317,2.98512519,1908.4,1908.0,15.00602144]
[1680698815549,1.98512519,1908.4,1908.0,15.00602144]
[1680698815856,2.09,1908.2,1908.0,15.00602144]
[1680698816013,0.18342,1908.1,1908.0,15.00602144]
[1680698816625,1.27342,1908.1,1908.0,15.00602144]
[1680698817044,1.64027,1908.1,1908.0,15.00602144]
[1680698817222,4.27455255,1908.1,1908.0,15.00602144]
[1680698817427,4.70220781,1908.1,1908.0,15.00602144]
[1680698818256,4.56535781,1908.1,1908.0,15.00602144]
[1680698818668,4.15193781,1908.1,1908.0,15.00602144]
[1680698820005,4.70220781,1908.1,1908.0,15.00602144]
[1680698821231,4.34135781,1908.1,1908.0,15.002]
[1680698821625,4.70820781,1908.1,1908.0,15.002]
[1680698822154,10.21620781,1908.1,1908.0,15.002]
[1680698822360,10.44820781,1908.1,1908.0,15.002]
[1680698822654,4.71020781,1908.1,1908.0,15.002]
[1680698822861,4.70820781,1908.1,1908.0,15.002]
[1680698823021,4.34135781,1908.1,1908.0,15.002]
[1680698823226,3.73028255,1908.1,1908.0,15.002]
[1680698823433,3.72428255,1908.1,1908.0,15.002]
[1680698824566,3.72428255,1908.1,1908.0,15.00602144]
[1680698824761,3.90770255,1908.1,1908.0,15.00602144]
[1680698825059,5.00826255,1908.1,1908.0,15.00602144]
[1680698825261,5.55457281,1908.1,1908.0,14.952]
[1680698825464,4.82086281,1908.1,1908.0,14.952]
[1680698825766,4.81886281,1908.1,1908.0,14.952]
[1680698826131,4.45201281,1908.1,1908.0,14.952]
[1680698826757,4.81886281,1908.1,1908.0,14.952]
[1680698828947,5.37033583,1908.1,1908.0,14.952]
[1680698829148,5.37233583,1908.1,1908.0,14.952]
[1680698829670,4.82206583,1908.1,1908.0,14.952]
[1680698829848,4.82006583,1908.1,1908.0,14.952]
[1680698830870,8.649,1908.0,1907.9,2.144e-05]
[1680698831071,17.36871913,1908.0,1907.9,0.002]
[1680698831368,17.36871913,1908.0,1907.7,0.1]
[1680698831543,3.72428255,1907.8,1907.7,0.1]
[1680698831942,3.95428255,1907.8,1907.7,0.1]
[1680698832177,2.63428255,1907.8,1907.7,0.1]
[1680698833251,0.48400658,1908.0,1907.7,0.1]
[1680698833460,2.63428255,1907.9,1907.7,0.1]
[1680698834037,0.54031026,1908.1,1907.7,0.1]
[1680698834246,2.63428255,1908.0,1907.7,0.1]
[1680698834667,1.089,1908.2,1907.7,0.1]
[1680698834871,0.13113604,1908.5,1907.7,0.12164735]
[1680698835075,2.76341859,1908.5,1907.7,11.40324735]
[1680698835255,2.76341859,1908.5,1907.7,16.17164735]
[1680698835576,2.76941859,1908.5,1907.8,2.098]
[1680698835777,0.006,1908.6,1907.8,7.606]
[1680698835977,0.006,1908.7,1908.2,1.098]
[1680698836274,0.006,1909.0,1908.3,1.098]
[1680698836475,0.13421122,1909.1,1908.5,1.089]
[1680698836476,0.006,1909.1,1908.5,1.089]
[1680698836682,0.18931,1909.3,1908.5,1.089]
[1680698836976,0.31949071,1909.4,1908.5,1.089]
[1680698837399,2.63428255,1909.3,1908.5,1.089]
[1680698837547,3.11836988,1909.3,1908.5,4.089]
[1680698837970,3.68361135,1909.3,1908.5,4.089]
[1680698838682,4.05023135,1909.3,1908.5,4.089]
[1680698839264,3.38883402,1909.3,1908.6,1.11963714]
[1680698839453,3.75545402,1909.3,1908.6,1.11963714]
[1680698839857,0.57124147,1909.3,1908.9,1.089]
[1680698840060,0.57124147,1909.3,1909.1,1.098]
[1680698840061,0.56524147,1909.3,1909.1,1.098]
[1680698840801,0.56524147,1909.3,1909.2,0.02163035]
[1680698841093,0.006,1909.7,1909.2,0.02163035]
[1680698841274,0.006,1909.8,1909.2,2.11963035]
[1680698841457,0.425159,1909.9,1909.3,1.098]
[1680698841671,3.05944155,1909.9,1909.3,1.098]
[1680698841883,0.425159,1909.9,1909.4,0.02162807]
[1680698842052,0.49730668,1909.7,1909.4,0.02162807]
[1680698842583,0.49730668,1909.7,1909.5,6.60381795]
[1680698842806,0.49730668,1909.7,1909.6,0.02162581]
[1680698843090,0.49730668,1909.7,1909.6,1.11062581]
[1680698843784,0.419159,1909.9,1909.6,1.11062581]
[1680698844561,0.419159,1909.9,1909.6,0.02162581]
[1680698844887,0.49808385,1909.8,1909.6,0.02162581]
[1680698845086,0.49808385,1909.8,1909.4,1.091]
[1680698845385,0.49808385,1909.8,1909.3,5.7577]
[1680698845685,0.49808385,1909.8,1909.3,1.1]
[1680698845855,0.49808385,1909.8,1909.3,1.098]
[1680698846776,0.49808385,1909.8,1909.2,1.11963035]
[1680698846959,3.3156264,1909.8,1909.2,1.11963035]
[1680698847163,3.3216264,1909.8,1909.1,4.1]
[1680698847369,3.6881564,1909.8,1909.1,3.0]
[1680698847576,0.36881564,1909.7,1909.1,3.0]
[1680698847777,0.55209564,1909.7,1909.1,3.0]
[1680698847992,0.55809564,1909.7,1909.1,4.098]
[1680698849391,3.55891819,1909.7,1909.1,4.098]
[1680698849594,2.64028255,1909.7,1909.1,1.098]
[1680698850790,2.64028255,1909.7,1909.4,1.098]
[1680698850791,0.006,1909.7,1909.4,1.098]
[1680698850996,0.419159,1909.9,1909.4,1.098]
[1680698851482,0.419159,1909.9,1909.4,1.11962807]
[1680698851694,0.419159,1909.9,1909.5,1.098]
[1680698852679,0.419159,1909.9,1909.6,1.098]
[1680698853459,0.006,1910.1,1909.6,1.098]
[1680698853766,2.64028255,1910.1,1909.6,1.098]
[1680698853981,0.26402826,1910.0,1909.6,1.098]
[1680698854192,0.27002826,1910.0,1909.6,1.098]
[1680698855681,0.27002826,1910.0,1909.5,1.098]
[1680698855912,0.27002826,1910.0,1909.3,14.6248]
[1680698855913,2.63428255,1909.9,1909.3,14.6248]
[1680698856068,2.64028255,1909.9,1909.3,13.5268]
[1680698856966,2.64028255,1909.9,1909.3,10.5268]
[1680698857280,0.26402826,1909.8,1909.3,10.5268]
[1680698857515,0.26402826,1909.8,1909.3,0.002]
[1680698857516,2.63428255,1909.7,1909.3,0.002]
[1680698857685,2.63428255,1909.7,1909.0,1.1]
[1680698858001,0.26342826,1909.6,1909.0,1.098]
[1680698858170,2.89771081,1909.6,1909.0,1.098]
[1680698858366,2.90371081,1909.6,1909.0,1.098]
[1680698859011,0.50119121,1909.5,1909.0,1.098]
[1680698859173,0.84168141,1909.5,1909.0,1.098]
[1680698859476,0.84168141,1909.5,1909.0,1.11963261]
[1680698860679,0.83915846,1909.5,1909.0,0.02565405]
[1680698861373,0.83915846,1909.5,1909.0,1.12365405]
[1680698863096,1.02244846,1909.5,1909.0,1.12365405]
[1680698865182,0.10224485,1909.4,1909.0,1.07365405]
[1680698866505,0.3464902,1909.5,1909.0,1.07365405]
[1680698866727,2.66191518,1909.6,1909.1,1.0]
[1680698867382,2.84519518,1909.6,1909.0,2.07365405]
[1680698867582,2.66191518,1909.6,1909.0,2.07365405]
[1680698867815,2.84519518,1909.6,1909.0,2.07365405]
[1680698867991,2.66191518,1909.6,1909.0,2.07365405]
[1680698868602,0.02763263,1909.6,1909.1,2.098]
[1680698868827,0.50135304,1909.5,1909.3,1.089]
[1680698869621,0.50135304,1909.5,1909.4,1.098]
[1680698869815,0.50135304,1909.5,1909.4,4.098]
[1680698870008,0.50135304,1909.5,1909.4,5.098]
[1680698870327,0.50135304,1909.5,1909.4,5.1]
[1680698870626,0.004,1910.1,1909.4,19.28028255]
[1680698870827,0.11000001,1910.4,1910.0,2.196]
[1680698871014,0.11000001,1910.4,1910.0,6.605]
[1680698871189,0.03881873,1910.6,1910.0,8.907]
[1680698871527,0.03881873,1910.6,1910.2,5.508]
[1680698871743,0.03881873,1910.6,1910.3,8.738]
[1680698871949,0.03881873,1910.6,1910.3,0.008]
[1680698872089,0.03881873,1910.6,1910.2,0.935]
[1680698872294,0.22200873,1910.6,1910.2,0.929]
[1680698872590,2.20763263,1910.5,1909.9,0.008]
[1680698872812,0.1832,1910.4,1909.8,0.006]
[1680698873018,2.59496326,1910.4,1909.5,0.002]
[1680698873341,3.45457,1910.2,1909.3,11.1036]
[1680698873503,6.05773,1910.0,1909.3,0.002]
[1680698873689,0.54984,1909.6,1909.0,0.002]
[1680698874011,5.25264,1909.6,1908.6,5.508]
[1680698874219,3.054984,1909.5,1909.2,0.157]
[1680698874394,3.08261663,1909.5,1909.2,0.157]
[1680698875225,0.08261663,1909.5,1909.2,0.157]
[1680698875391,0.02763263,1909.5,1909.2,0.157]
[1680698875698,0.02163263,1909.5,1909.2,0.157]
[1680698876024,0.02763263,1909.5,1909.2,0.157]
[1680698876730,0.02163263,1909.5,1909.2,0.157]
[1680698878739,0.006,1909.6,1909.2,0.157]
[1680698878894,0.38503934,1909.4,1909.2,1.157]
[1680698879095,0.38503934,1909.4,1909.2,3.348]
[1680698879313,0.38503934,1909.4,1909.3,2.187]
[1680698879520,0.38503934,1909.4,1909.3,7.695]
[1680698879686,0.38503934,1909.4,1909.3,7.697]
[1680698879886,0.006,1909.9,1909.3,7.697]
[1680698880112,0.006,1910.0,1909.5,2.191]
[1680698880518,0.006,1910.0,1909.5,5.508]
[1680698880754,0.006,1910.0,1909.7,0.155]
[1680698881059,0.38892562,1909.9,1909.7,0.155]
[1680698882546,0.38892562,1909.9,1909.8,2.191]
[1680698882940,0.006,1910.4,1909.8,2.191]
[1680698883147,0.006,1910.5,1910.0,2.175]
[1680698883449,0.006,1910.5,1909.8,3.0]
[1680698883450,0.006,1910.5,1910.1,2.191]
[1680698883641,0.03881873,1910.6,1910.2,0.17]
[1680698884048,0.04481873,1910.6,1910.2,2.361]
[1680698884418,0.04481873,1910.6,1910.3,2.187]
[1680698884664,0.03881873,1910.6,1910.3,2.187]
[1680698884829,0.03881873,1910.6,1910.3,5.187]
[1680698885034,0.03881873,1910.6,1910.4,2.353]
[1680698885239,0.03881873,1910.6,1910.5,2.191]
[1680698885464,0.03881873,1910.6,1910.5,13.56328255]
[1680698885766,0.00081873,1910.6,1910.5,13.56528255]
[1680698885931,0.00081873,1910.6,1910.5,11.101]
[1680698886133,0.00081873,1910.6,1910.5,3.402]
[1680698886334,0.06081874,1910.8,1910.5,3.17]
[1680698887169,0.06081874,1910.8,1910.7,7.683]
[1680698887368,0.06081874,1910.8,1910.7,13.54928255]
[1680698887534,0.06081874,1910.8,1910.7,8.04128255]
[1680698887733,0.06081874,1910.8,1910.7,5.338]
[1680698887939,0.06081874,1910.8,1910.7,10.846]
[1680698888335,0.06081874,1910.8,1910.7,13.71028255]
[1680698888561,0.06081874,1910.8,1910.7,15.91028255]
[1680698891387,3e-08,1911.5,1911.3,16.70628255]
[1680698891558,3e-08,1911.5,1911.4,18.66328255]
[1680698891756,3e-08,1911.5,1911.4,13.55428255]
[1680698891960,3e-08,1911.5,1911.4,13.70828255]
[1680698892657,3e-08,1911.5,1911.4,13.47828255]
[1680698893551,0.00082503,1911.6,1911.4,18.81928255]
[1680698893750,0.00082503,1911.6,1911.5,11.33328255]
[1680698894059,0.00082503,1911.6,1911.5,13.33528255]
[1680698894259,0.00082503,1911.6,1911.5,13.48928255]
[1680698895876,0.00082503,1911.6,1911.5,13.71928255]
[1680698896777,0.00082503,1911.6,1911.5,14.71928255]
[1680698897086,0.00082503,1911.6,1911.5,8.21128255]
[1680698897294,0.00082503,1911.6,1911.5,13.71928255]
[1680698899070,0.00082503,1911.6,1911.5,13.71928255]
[1680698899264,0.00082503,1911.6,1911.5,7.98128255]
[1680698899572,0.00082503,1911.6,1911.5,5.79028255]
[1680698899986,0.00082503,1911.6,1911.5,2.79028255]
[1680698900187,0.00082503,1911.6,1911.5,4.96328255]
[1680698900678,0.00082503,1911.6,1911.5,10.47128255]
[1680698900880,0.00082503,1911.6,1911.5,10.70328255]
[1680698901187,0.00082503,1911.6,1911.5,13.70328255]
[1680698902960,0.00082503,1911.6,1911.5,8.19528255]
[1680698903456,0.00082503,1911.6,1911.5,13.70328255]
[1680698903868,0.11000001,1911.7,1911.5,13.70328255]
[1680698904201,0.11000001,1911.7,1911.6,16.45328255]
[1680698904362,0.11000001,1911.7,1911.6,16.45528255]
[1680698904561,1e-08,1911.7,1911.6,16.45528255]
[1680698904786,1e-08,1911.7,1911.6,26.71998255]
[1680698904973,1e-08,1911.7,1911.6,27.4465207]
[1680698905498,0.11000001,1912.1,1911.8,8.649]
[1680698905703,0.11000001,1912.1,1912.0,10.32328255]
[1680698905879,0.06000001,1912.1,1912.0,10.55528255]
[1680698906196,0.06000001,1912.1,1912.0,13.55528255]
[1680698906493,0.06000001,1912.1,1912.0,14.2818207]
[1680698906899,0.06000001,1912.1,1912.0,17.5818207]
[1680698907257,1e-08,1912.1,1912.0,19.7538207]
[1680698907493,1e-08,1912.5,1912.4,9.1]
[1680698907709,1e-08,1912.5,1912.4,18.60228255]
[1680698907866,1e-08,1912.5,1912.4,18.76728255]
[1680698908064,1e-08,1912.5,1912.4,15.62628255]
[1680698908277,1e-08,1912.5,1912.4,18.76728255]
[1680698908500,0.11000001,1912.6,1912.4,26.6938207]
[1680698908501,2e-08,1912.6,1912.4,26.6938207]
[1680698908803,0.004,1914.2,1913.9,10.26162043]
[1680698909000,0.0118785,1915.3,1914.1,7.308]
[1680698909159,0.73101,1915.2,1914.1,1.802]
[1680698909474,0.073101,1915.1,1914.1,1.8]
[1680698909671,2.191,1915.2,1914.4,1.52854988]
[1680698909873,0.0178785,1915.3,1914.5,0.399]
[1680698910063,0.11386635,1915.3,1914.6,1.51218446]
[1680698910290,0.0178785,1915.3,1914.7,0.23]
[1680698910486,0.0178785,1915.3,1914.9,5.508]
[1680698910719,0.65295716,1915.5,1915.0,7.23927702]
[1680698910720,0.09929536,1915.5,1915.0,7.23927702]
[1680698910890,0.09929536,1915.5,1915.1,0.23]
[1680698911086,0.09929536,1915.5,1915.2,6.99837187]
[1680698911314,0.09929536,1915.5,1915.4,6.99564594]
[1680698911518,1.60005559,1916.2,1915.4,9.17864594]
[1680698911699,0.16000556,1916.1,1915.6,6.97111896]
[1680698911998,0.13003975,1916.2,1915.8,5.508]
[1680698912197,0.13003975,1916.2,1915.9,0.23]
[1680698912400,0.13003975,1916.2,1915.8,0.002]
[1680698912696,0.006,1917.0,1916.0,1.62122177]
[1680698913044,0.002,1917.2,1916.0,1.62122177]
[1680698913045,0.006,1917.1,1916.1,5.738]
[1680698913240,0.13875706,1917.1,1916.3,1.41954386]
[1680698913404,0.13875706,1917.1,1916.2,5.508]
[1680698913405,0.02763263,1917.1,1916.2,0.002]
[1680698913733,0.02763263,1917.1,1915.6,0.006]
[1680698913734,3.993,1916.3,1915.6,0.006]
[1680698913964,0.006,1916.1,1915.1,2.206]
[1680698914106,0.32123,1916.6,1915.1,2.2]
[1680698914305,0.18262,1916.5,1915.5,0.044]
[1680698914507,0.438227,1916.8,1915.5,0.044]
[1680698914740,3.993,1916.6,1915.5,0.044]
[1680698914961,0.438227,1916.8,1915.5,0.05]
[1680698914962,0.277574,1916.4,1915.5,0.05]
[1680698915252,0.073037,1916.8,1915.7,5.508]
[1680698915549,4.856,1917.0,1915.7,8.657]
[1680698915550,0.002,1917.0,1915.7,8.657]
[1680698915839,3.99,1917.2,1916.2,0.043]
[1680698916008,0.41210381,1917.1,1916.2,0.043]
[1680698916208,0.11200001,1917.3,1916.7,5.0]
[1680698916411,0.54513999,1919.4,1917.6,5.0]
[1680698916758,0.006,1919.4,1918.5,5.0]
[1680698916960,2.1,1922.0,1919.4,5.508]
[1680698917112,0.004,1921.5,1919.4,71.90609711]
[1680698917451,0.95173223,1924.8,1921.9,10.69999999]
[1680698917667,1.59550289,1926.9,1921.9,10.69999999]
[1680698917668,0.54712445,1927.5,1922.0,5.508]
[1680698917819,2.50409245,1927.5,1924.7,10.69999999]
[1680698918005,0.002,1927.7,1927.3,9.84450591]
[1680698918210,41.13633657,1927.9,1927.4,9.32717488]
[1680698918411,0.12828576,1928.3,1927.8,31.21104786]
[1680698918614,2.52656529,1929.9,1927.8,71.90609711]
[1680698918909,2.52656529,1929.9,1929.8,8.31975496]
[1680698918910,3.5,1929.9,1929.8,8.31975496]
[1680698919110,11.13503504,1930.0,1929.2,5.49592973]
[1680698919342,11.13503504,1930.0,1927.4,0.006]
[1680698919343,10.36,1929.9,1929.8,0.004]
[1680698919532,0.002,1929.9,1929.8,68.08856905]
[1680698919717,0.0653014,1930.7,1929.8,69.50256905]
[1680698919916,2.57190999,1932.4,1930.6,7.87293803]
[1680698920119,5.29894577,1932.5,1930.6,44.33222755]
[1680698920312,1.21572853,1932.5,1932.3,27.44590201]
[1680698920511,0.05730842,1933.4,1932.3,27.44590201]
[1680698920512,1.16370865,1933.3,1932.4,3.949]
[1680698920748,1.16370865,1933.3,1932.3,58.61222755]
[1680698920749,10.33,1932.4,1932.3,54.47103755]
[1680698920920,10.33,1932.4,1932.3,48.18421755]
[1680698920921,6.10965187,1932.4,1932.3,48.18421755]
[1680698921268,0.61446854,1935.8,1932.4,0.006]
[1680698921543,0.46221198,1935.8,1935.7,31.575]
[1680698921770,0.46221198,1935.8,1932.4,3.8818668]
[1680698921771,0.18082,1935.6,1932.4,3.8818668]
[1680698921961,0.18082,1935.6,1932.3,2.8]
[1680698921962,1.0794281,1932.5,1932.1,0.006]
[1680698922111,4.682,1932.5,1930.3,10.0]
[1680698922448,0.3971,1933.4,1932.4,5.079]
[1680698922612,1.56090806,1935.7,1932.5,3.141]
[1680698922613,0.13037273,1935.1,1932.5,3.141]
[1680698922812,5.065,1932.5,1930.8,0.26386727]
[1680698923068,0.002,1932.6,1928.8,2.57070265]
[1680698923369,0.002,1932.6,1932.0,0.002]
[1680698923370,0.1811,1932.6,1932.0,0.002]
[1680698923512,0.5433,1932.6,1932.0,0.002]
[1680698923708,0.05433,1932.5,1932.0,0.002]
[1680698923943,0.18112,1932.4,1929.6,0.002]
[1680698924150,0.18112,1932.4,1928.9,0.002]
[1680698924322,0.3622,1932.6,1928.5,0.006]
[1680698924323,0.3622,1932.6,1928.5,1.0002]
[1680698924525,11.37457309,1932.8,1929.5,5.122]
[1680698924526,0.18112,1932.4,1929.5,5.122]
[1680698924849,8.30023333,1932.0,1929.5,0.008]
[1680698925024,3.31223333,1931.1,1928.6,0.05802]
[1680698925221,10.0556298,1931.5,1928.8,0.006]
[1680698925445,3.62814,1932.6,1928.8,0.006]
[1680698925446,10.70044587,1933.4,1928.8,10.416]
[1680698925747,118.28779482,1937.8,1932.0,5.117]
[1680698925748,18.08406,1935.5,1932.0,5.117]
[1680698925948,18.08406,1935.5,1932.6,10.32]
[1680698925949,3.79355549,1933.3,1932.6,10.32]
[1680698926133,0.18104,1933.3,1931.3,0.26113556]
[1680698926347,0.18104,1933.3,1931.7,1.26158004]
[1680698926348,0.13,1933.2,1931.7,1.26158004]
[1680698926509,0.13,1933.2,1932.0,0.002]
[1680698926709,0.13,1933.2,1929.5,5.0]
[1680698926710,5.124,1932.5,1929.5,5.0]
[1680698926942,5.124,1932.5,1929.2,5.122]
[1680698926943,0.002,1933.4,1931.7,10.31]
[1680698927146,0.002,1934.5,1931.1,5.0]
[1680698927147,3.141,1934.5,1931.1,5.0]
[1680698927345,9.701,1935.5,1930.9,2.3]
[1680698927346,0.11000001,1933.5,1932.9,5.0]
[1680698927647,1.0,1933.4,1932.9,0.02965008]
[1680698927811,0.002,1935.0,1932.9,0.02965008]
[1680698927812,0.002,1935.0,1933.4,5.079]
[1680698928012,9.659,1935.5,1933.4,5.124]
[1680698928240,9.661,1935.5,1933.8,5.122]
[1680698928426,9.661,1935.5,1932.2,5.0]
[1680698928427,9.667,1935.5,1932.2,5.0]
[1680698928624,9.667,1935.5,1931.5,2.2]
[1680698928625,10.35,1935.0,1933.8,0.002]
[1680698928849,1.035,1934.9,1933.8,0.002]
[1680698929067,0.008,1935.0,1933.4,2.7]
[1680698929380,0.006,1935.0,1933.5,0.23]
[1680698929866,0.36057317,1935.4,1935.1,5.0]
[1680698930065,9.659,1935.5,1935.1,5.0]
[1680698930066,9.661,1935.5,1935.1,0.008]
[1680698930243,9.219,1935.7,1935.1,0.008]
[1680698930440,9.219,1935.7,1935.1,0.006]
[1680698930441,0.002,1935.5,1935.1,0.006]
[1680698930641,0.004,1935.4,1933.8,0.006]
[1680698930847,0.004,1935.4,1933.6,0.006]
[1680698931063,5.124,1934.8,1932.4,0.07244]
[1680698931235,10.34,1934.3,1933.3,2.2181]
[1680698931436,5.124,1935.1,1933.3,2.2181]
[1680698931437,0.49424816,1935.6,1934.6,2.2]
[1680698931631,2.2,1937.5,1934.8,0.01808]
[1680698931866,0.07,1937.7,1936.1,2.2]
[1680698932036,0.07,1937.7,1935.4,5.079]
[1680698932232,1.74200001,1938.4,1936.8,5.0]
[1680698932436,5.124,1937.7,1935.7,2.2]
[1680698932687,2.062,1939.3,1935.5,1.502]
[1680698932864,4.2,1939.4,1936.6,5.331]
[1680698933170,0.0131,1939.9,1937.9,2.3]